{"text_format":"1","workbook":"xlsx","n_sheets":4,"sheets":["Main","Samir Fouad","Omar Nagy","Said Reda"],"not_rendered":{"charts":0,"images":0,"macros":0,"external_links":0,"defined_names":1,"comments":0,"pivot_tables":0},"unopened":[],"bounds":{"document_bytes":16777216,"sheet_cells":100000,"rows_first":2000,"rows_last":500,"rows_between":2000,"halvings":0,"cell_chars":16384,"cell_head_chars":4096},"cells_cut":0,"cells_raw":0,"read":"whole","date_system":"1900"}

{"sheet":"Main","index":0,"n_rows":224,"n_cols":43,"rows_kept":224,"cut":false,"hidden":false,"merged":[[0,35,0,42],[223,35,223,40],[0,0,0,2],[0,3,0,25],[0,26,0,30],[0,32,0,34]]}
["Participating",null,null,"Ticket",null,null,null,null,null,null,null,null,null,null,null,null,null,null,null,null,null,null,null,null,null,null,"Prices",null,null,null,null,"Codes","Cancel",null,null,"Collection"]
["Adl","Chd","Baby","Muh Kullanıcı","Muhasebe Tarih","Zarf","Accounting","Ödeme Beklenen","Sale Type","SlipNo","Slip Tutarı","Free","Tour Name","Voucher","Tour Date","Guide Name","Customer Package","Packet","Colection Control","Hotel","Suppliers","Sale Date","Trans Region Name","Remark","Lock","Ticket No","Tour Price","Discount","Ekstra Price","Net Amount","Collection",null,"Adl","Chd","Baby","Date","Process","Type","Receipt No","Curr","Exchange","Amount","Remark"]
[null,null,null,null,null,null,null,null,null,null,null,null,null,null,null,"Said Reda",null,null,null,null,null,null,null,null,null,1000055,null,null,null,195]
[null,null,null,null,null,null,null,null,null,null,null,null,null,null,null,"Said Reda",null,null,null,null,null,null,null,null,null,1000057,null,null,null,60]
[null,null,null,null,null,null,null,null,null,null,null,null,null,null,null,"Said Reda",null,null,null,null,null,null,null,null,null,1000058,null,null,null,70]
[null,null,null,null,null,null,null,null,null,null,null,null,"Shopping",null,null,"Said Reda",null,null,null,null,null,null,null,null,null,1000059,null,null,null,0]
[null,null,null,null,null,null,null,null,null,null,null,null,null,null,null,"Said Reda",null,null,null,null,null,null,null,null,null,1000060,null,null,null,160]
[null,null,null,null,null,null,null,null,null,null,null,null,null,null,null,"Said Reda",null,null,null,null,null,null,null,null,null,1000061,null,null,null,110]
[null,null,null,null,null,null,null,null,null,null,null,null,null,null,null,"Said Reda",null,null,null,null,null,null,null,null,null,1000062,null,null,null,60]
[null,null,null,null,null,null,null,null,null,null,null,null,"Shopping",null,null,"Said Reda",null,null,null,null,null,null,null,null,null,1000063,null,null,null,0]
[null,null,null,null,null,null,null,null,null,null,null,null,null,null,null,"Said Reda",null,null,null,null,null,null,null,null,null,1000064,null,null,null,80]
[null,null,null,null,null,null,null,null,null,null,null,null,null,null,null,"Said Reda",null,null,null,null,null,null,null,null,null,1000065,null,null,null,60]
[null,null,null,null,null,null,null,null,null,null,null,null,null,null,null,"Said Reda",null,null,null,null,null,null,null,null,null,1000066,null,null,null,75]
[null,null,null,null,null,null,null,null,null,null,null,null,"Shopping",null,null,"Said Reda",null,null,null,null,null,null,null,null,null,1000067,null,null,null,0]
[null,null,null,null,null,null,null,null,null,null,null,null,"Shopping",null,null,"Said Reda",null,null,null,null,null,null,null,null,null,1000069,null,null,null,0]
[null,null,null,null,null,null,null,null,null,null,null,null,"Shopping",null,null,"Said Reda",null,null,null,null,null,null,null,null,null,1000070,null,null,null,0]
[null,null,null,null,null,null,null,null,null,null,null,null,null,null,null,"Said Reda",null,null,null,null,null,null,null,null,null,1000072,null,null,null,60]
[null,null,null,null,null,null,null,null,null,null,null,null,"Shopping",null,null,"Said Reda",null,null,null,null,null,null,null,null,null,1000073,null,null,null,0]
[null,null,null,null,null,null,null,null,null,null,null,null,"Shopping",null,null,"Said Reda",null,null,null,null,null,null,null,null,null,1000074,null,null,null,0]
[null,null,null,null,null,null,null,null,null,null,null,null,null,null,null,"Said Reda",null,null,null,null,null,null,null,null,null,1000075,null,null,null,70]
[null,null,null,null,null,null,null,null,null,null,null,null,null,null,null,"Said Reda",null,null,null,null,null,null,null,null,null,1000077,null,null,null,90]
[null,null,null,null,null,null,null,null,null,null,null,null,null,null,null,"Said Reda",null,null,null,null,null,null,null,null,null,1000078,null,null,null,200]
[null,null,null,null,null,null,null,null,null,null,null,null,null,null,null,"Said Reda",null,null,null,null,null,null,null,null,null,1000079,null,null,null,100]
[null,null,null,null,null,null,null,null,null,null,null,null,null,null,null,"Said Reda",null,null,null,null,null,null,null,null,null,1000080,null,null,null,60]
[null,null,null,null,null,null,null,null,null,null,null,null,null,null,null,"Said Reda",null,null,null,null,null,null,null,null,null,1000081,null,null,null,160]
[null,null,null,null,null,null,null,null,null,null,null,null,"Shopping",null,null,"Said Reda",null,null,null,null,null,null,null,null,null,1000082,null,null,null,0]
[null,null,null,null,null,null,null,null,null,null,null,null,null,null,null,"Said Reda",null,null,null,null,null,null,null,null,null,1000083,null,null,null,80]
[null,null,null,null,null,null,null,null,null,null,null,null,null,null,null,"Samir Fouad",null,null,null,null,null,null,null,null,null,1000217,null,null,null,110]
[null,null,null,null,null,null,null,null,null,null,null,null,null,null,null,"Samir Fouad",null,null,null,null,null,null,null,null,null,1000218,null,null,null,60]
[null,null,null,null,null,null,null,null,null,null,null,null,null,null,null,"Samir Fouad",null,null,null,null,null,null,null,null,null,1000219,null,null,null,110]
[null,null,null,null,null,null,null,null,null,null,null,null,null,null,null,"Samir Fouad",null,null,null,null,null,null,null,null,null,1000220,null,null,null,60]
[null,null,null,null,null,null,null,null,null,null,null,null,null,null,null,"Samir Fouad",null,null,null,null,null,null,null,null,null,1000223,null,null,null,110]
[null,null,null,null,null,null,null,null,null,null,null,null,null,null,null,"Samir Fouad",null,null,null,null,null,null,null,null,null,1000224,null,null,null,60]
[null,null,null,null,null,null,null,null,null,null,null,null,null,null,null,"Samir Fouad",null,null,null,null,null,null,null,null,null,1000226,null,null,null,70]
[null,null,null,null,null,null,null,null,null,null,null,null,"20 $ Discount",null,null,"Samir Fouad",null,null,null,null,null,null,null,null,null,1000228,null,null,null,110]
[null,null,null,null,null,null,null,null,null,null,null,null,"10 $ Discount",null,null,"Samir Fouad",null,null,null,null,null,null,null,null,null,1000229,null,null,null,50]
[null,null,null,null,null,null,null,null,null,null,null,null,null,null,null,"Samir Fouad",null,null,null,null,null,null,null,null,null,1000233,null,null,null,30]
[null,null,null,null,null,null,null,null,null,null,null,null,"10 $ Discount",null,null,"Samir Fouad",null,null,null,null,null,null,null,null,null,1000234,null,null,null,60]
[null,null,null,null,null,null,null,null,null,null,null,null,"10 $ Discount",null,null,"Samir Fouad",null,null,null,null,null,null,null,null,null,1000238,null,null,null,60]
[null,null,null,null,null,null,null,null,null,null,null,null,"Shopping",null,null,"Samir Fouad",null,null,null,null,null,null,null,null,null,1000239,null,null,null,0]
[null,null,null,null,null,null,null,null,null,null,null,null,"5 $ Discount",null,null,"Samir Fouad",null,null,null,null,null,null,null,null,null,1000240,null,null,null,25]
[null,null,null,null,null,null,null,null,null,null,null,null,null,null,null,"Samir Fouad",null,null,null,null,null,null,null,null,null,1000241,null,null,null,30]
[null,null,null,null,null,null,null,null,null,null,null,null,null,null,null,"Samir Fouad",null,null,null,null,null,null,null,null,null,1000242,null,null,null,110]
[null,null,null,null,null,null,null,null,null,null,null,null,"Shopping",null,null,"Samir Fouad",null,null,null,null,null,null,null,null,null,1000243,null,null,null,0]
[null,null,null,null,null,null,null,null,null,null,null,null,null,null,null,"Samir Fouad",null,null,null,null,null,null,null,null,null,1000244,null,null,null,160]
[null,null,null,null,null,null,null,null,null,null,null,null,"Shopping",null,null,"Samir Fouad",null,null,null,null,null,null,null,null,null,1000245,null,null,null,0]
[null,null,null,null,null,null,null,null,null,null,null,null,null,null,null,"Samir Fouad",null,null,null,null,null,null,null,null,null,1000247,null,null,null,80]
[null,null,null,null,null,null,null,null,null,null,null,null,"Shopping",null,null,"Samir Fouad",null,null,null,null,null,null,null,null,null,1000248,null,null,null,0]
[null,null,null,null,null,null,null,null,null,null,null,null,"Shopping",null,null,"Samir Fouad",null,null,null,null,null,null,null,null,null,1000249,null,null,null,0]
[null,null,null,null,null,null,null,null,null,null,null,null,null,null,null,"Samir Fouad",null,null,null,null,null,null,null,null,null,1000250,null,null,null,100]
[null,null,null,null,null,null,null,null,null,null,null,null,null,null,null,"Omar Nagy",null,null,null,null,null,null,null,null,null,1000411,null,null,null,55]
[null,null,null,null,null,null,null,null,null,null,null,null,null,null,null,"Omar Nagy",null,null,null,null,null,null,null,null,null,1000413,null,null,null,220]
[null,null,null,null,null,null,null,null,null,null,null,null,null,null,null,"Omar Nagy",null,null,null,null,null,null,null,null,null,1000414,null,null,null,60]
[null,null,null,null,null,null,null,null,null,null,null,null,null,null,null,"Omar Nagy",null,null,null,null,null,null,null,null,null,1000416,null,null,null,90]
[null,null,null,null,null,null,null,null,null,null,null,null,"5 $ Discount",null,null,"Omar Nagy",null,null,null,null,null,null,null,null,null,1000421,null,null,null,55]
[null,null,null,null,null,null,null,null,null,null,null,null,null,null,null,"Omar Nagy",null,null,null,null,null,null,null,null,null,1000422,null,null,null,60]
[null,null,null,null,null,null,null,null,null,null,null,null,null,null,null,"Omar Nagy",null,null,null,null,null,null,null,null,null,1000423,null,null,null,60]
[null,null,null,null,null,null,null,null,null,null,null,null,null,null,null,"Omar Nagy",null,null,null,null,null,null,null,null,null,1000424,null,null,null,30]
[null,null,null,null,null,null,null,null,null,null,null,null,null,null,null,"Omar Nagy",null,null,null,null,null,null,null,null,null,1000425,null,null,null,60]
[null,null,null,null,null,null,null,null,null,null,null,null,null,null,null,"Omar Nagy",null,null,null,null,null,null,null,null,null,1000427,null,null,null,80]
[null,null,null,null,null,null,null,null,null,null,null,null,"Shopping",null,null,"Omar Nagy",null,null,null,null,null,null,null,null,null,1000428,null,null,null,0]
[null,null,null,null,null,null,null,null,null,null,null,null,"Shopping",null,null,"Omar Nagy",null,null,null,null,null,null,null,null,null,1000429,null,null,null,0]
[null,null,null,null,null,null,null,null,null,null,null,null,null,null,null,"Omar Nagy",null,null,null,null,null,null,null,null,null,1000430,null,null,null,165]
[null,null,null,null,null,null,null,null,null,null,null,null,null,null,null,"Omar Nagy",null,null,null,null,null,null,null,null,null,1000431,null,null,null,60]
[null,null,null,null,null,null,null,null,null,null,null,null,null,null,null,"Omar Nagy",null,null,null,null,null,null,null,null,null,1000432,null,null,null,80]
[null,null,null,null,null,null,null,null,null,null,null,null,null,null,null,"Omar Nagy",null,null,null,null,null,null,null,null,null,1000433,null,null,null,110]
[null,null,null,null,null,null,null,null,null,null,null,null,"Shopping",null,null,"Omar Nagy",null,null,null,null,null,null,null,null,null,1000434,null,null,null,0]
[null,null,null,null,null,null,null,null,null,null,null,null,"10 $ Discount",null,null,"Omar Nagy",null,null,null,null,null,null,null,null,null,1000435,null,null,null,100]
[null,null,null,null,null,null,null,null,null,null,null,null,"Shopping",null,null,"Omar Nagy",null,null,null,null,null,null,null,null,null,1000436,null,null,null,0]
[null,null,null,null,null,null,null,null,null,null,null,null,"Shopping",null,null,"Omar Nagy",null,null,null,null,null,null,null,null,null,1000437,null,null,null,0]
[null,null,null,null,null,null,null,null,null,null,null,null,null,null,null,"Omar Nagy",null,null,null,null,null,null,null,null,null,1000438,null,null,null,440]
[null,null,null,null,null,null,null,null,null,null,null,null,"35$ Discount",null,null,"Omar Nagy",null,null,null,null,null,null,null,null,null,1000439,null,null,null,115]
[null,null,null,null,null,null,null,null,null,null,null,null,null,null,null,"Samir Fouad",null,null,null,null,null,null,null,null,null,1000575,null,null,null,40]
[null,null,null,null,null,null,null,null,null,null,null,null,"Shopping",null,null,"Samir Fouad",null,null,null,null,null,null,null,null,null,1000588,null,null,null,0]
[null,null,null,null,null,null,null,null,null,null,null,null,null,null,null,"Samir Fouad",null,null,null,null,null,null,null,null,null,1000701,null,null,null,60]
[null,null,null,null,null,null,null,null,null,null,null,null,null,null,null,"Samir Fouad",null,null,null,null,null,null,null,null,null,1000702,null,null,null,80]
[null,null,null,null,null,null,null,null,null,null,null,null,"Shopping",null,null,"Samir Fouad",null,null,null,null,null,null,null,null,null,1000703,null,null,null,0]
[null,null,null,null,null,null,null,null,null,null,null,null,null,null,null,"Samir Fouad",null,null,null,null,null,null,null,null,null,1000704,null,null,null,80]
[null,null,null,null,null,null,null,null,null,null,null,null,null,null,null,"Samir Fouad",null,null,null,null,null,null,null,null,null,1000706,null,null,null,200]
[null,null,null,null,null,null,null,null,null,null,null,null,null,null,null,"Samir Fouad",null,null,null,null,null,null,null,null,null,1000707,null,null,null,70]
[null,null,null,null,null,null,null,null,null,null,null,null,"Shopping",null,null,"Samir Fouad",null,null,null,null,null,null,null,null,null,1000708,null,null,null,0]
[null,null,null,null,null,null,null,null,null,null,null,null,null,null,null,"Samir Fouad",null,null,null,null,null,null,null,null,null,1000709,null,null,null,80]
[null,null,null,null,null,null,null,null,null,null,null,null,null,null,null,"Samir Fouad",null,null,null,null,null,null,null,null,null,1000710,null,null,null,35]
[null,null,null,null,null,null,null,null,null,null,null,null,"Shopping",null,null,"Samir Fouad",null,null,null,null,null,null,null,null,null,1000711,null,null,null,0]
[null,null,null,null,null,null,null,null,null,null,null,null,null,null,null,"Samir Fouad",null,null,null,null,null,null,null,null,null,1000712,null,null,null,40]
[null,null,null,null,null,null,null,null,null,null,null,null,"5 $ Discount",null,null,"Samir Fouad",null,null,null,null,null,null,null,null,null,1000713,null,null,null,208]
[null,null,null,null,null,null,null,null,null,null,null,null,"5 $ Discount",null,null,"Samir Fouad",null,null,null,null,null,null,null,null,null,1000714,null,null,null,95]
[null,null,null,null,null,null,null,null,null,null,null,null,"5 $ Discount",null,null,"Samir Fouad",null,null,null,null,null,null,null,null,null,1000715,null,null,null,30]
[null,null,null,null,null,null,null,null,null,null,null,null,"Shopping",null,null,"Samir Fouad",null,null,null,null,null,null,null,null,null,1000716,null,null,null,0]
[null,null,null,null,null,null,null,null,null,null,null,null,null,null,null,"Samir Fouad",null,null,null,null,null,null,null,null,null,1000717,null,null,null,55]
[null,null,null,null,null,null,null,null,null,null,null,null,null,null,null,"Samir Fouad",null,null,null,null,null,null,null,null,null,1000718,null,null,null,95]
[null,null,null,null,null,null,null,null,null,null,null,null,"Shopping",null,null,"Samir Fouad",null,null,null,null,null,null,null,null,null,1000719,null,null,null,0]
[null,null,null,null,null,null,null,null,null,null,null,null,null,null,null,"Samir Fouad",null,null,null,null,null,null,null,null,null,1000720,null,null,null,90]
[null,null,null,null,null,null,null,null,null,null,null,null,null,null,null,"Samir Fouad",null,null,null,null,null,null,null,null,null,1000721,null,null,null,110]
[null,null,null,null,null,null,null,null,null,null,null,null,"Shopping",null,null,"Samir Fouad",null,null,null,null,null,null,null,null,null,1000723,null,null,null,0]
[null,null,null,null,null,null,null,null,null,null,null,null,"10 $ Discount",null,null,"Samir Fouad",null,null,null,null,null,null,null,null,null,1000724,null,null,null,110]
[null,null,null,null,null,null,null,null,null,null,null,null,"Shopping",null,null,"Samir Fouad",null,null,null,null,null,null,null,null,null,1000725,null,null,null,0]
[null,null,null,null,null,null,null,null,null,null,null,null,null,null,null,"Samir Fouad",null,null,null,null,null,null,null,null,null,1000726,null,null,null,80]
[null,null,null,null,null,null,null,null,null,null,null,null,"Shopping",null,null,"Samir Fouad",null,null,null,null,null,null,null,null,null,1000727,null,null,null,0]
[null,null,null,null,null,null,null,null,null,null,null,null,"15 $ Discount",null,null,"Samir Fouad",null,null,null,null,null,null,null,null,null,1000728,null,null,null,90]
[null,null,null,null,null,null,null,null,null,null,null,null,"5 $ Discount",null,null,"Samir Fouad",null,null,null,null,null,null,null,null,null,1000729,null,null,null,30]
[null,null,null,null,null,null,null,null,null,null,null,null,null,null,null,"Samir Fouad",null,null,null,null,null,null,null,null,null,1000730,null,null,null,110]
[null,null,null,null,null,null,null,null,null,null,null,null,"Shopping",null,null,"Samir Fouad",null,null,null,null,null,null,null,null,null,1000731,null,null,null,0]
[null,null,null,null,null,null,null,null,null,null,null,null,"Shopping",null,null,"Samir Fouad",null,null,null,null,null,null,null,null,null,1000732,null,null,null,0]
[null,null,null,null,null,null,null,null,null,null,null,null,null,null,null,"Samir Fouad",null,null,null,null,null,null,null,null,null,1000733,null,null,null,160]
[null,null,null,null,null,null,null,null,null,null,null,null,null,null,null,"Samir Fouad",null,null,null,null,null,null,null,null,null,1000734,null,null,null,160]
[null,null,null,null,null,null,null,null,null,null,null,null,null,null,null,"Samir Fouad",null,null,null,null,null,null,null,null,null,1000735,null,null,null,110]
[null,null,null,null,null,null,null,null,null,null,null,null,null,null,null,"Samir Fouad",null,null,null,null,null,null,null,null,null,1000736,null,null,null,160]
[null,null,null,null,null,null,null,null,null,null,null,null,null,null,null,"Samir Fouad",null,null,null,null,null,null,null,null,null,1000737,null,null,null,110]
[null,null,null,null,null,null,null,null,null,null,null,null,null,null,null,"Samir Fouad",null,null,null,null,null,null,null,null,null,1000738,null,null,null,160]
[null,null,null,null,null,null,null,null,null,null,null,null,null,null,null,"Samir Fouad",null,null,null,null,null,null,null,null,null,1000739,null,null,null,110]
[null,null,null,null,null,null,null,null,null,null,null,null,null,null,null,"Samir Fouad",null,null,null,null,null,null,null,null,null,1000740,null,null,null,160]
[null,null,null,null,null,null,null,null,null,null,null,null,null,null,null,"Samir Fouad",null,null,null,null,null,null,null,null,null,1000741,null,null,null,240]
[null,null,null,null,null,null,null,null,null,null,null,null,"Shopping",null,null,"Samir Fouad",null,null,null,null,null,null,null,null,null,1000742,null,null,null,0]
[null,null,null,null,null,null,null,null,null,null,null,null,null,null,null,"Samir Fouad",null,null,null,null,null,null,null,null,null,1000743,null,null,null,240]
[null,null,null,null,null,null,null,null,null,null,null,null,null,null,null,"Samir Fouad",null,null,null,null,null,null,null,null,null,1000744,null,null,null,186]
[null,null,null,null,null,null,null,null,null,null,null,null,null,null,null,"Samir Fouad",null,null,null,null,null,null,null,null,null,1000745,null,null,null,106]
[null,null,null,null,null,null,null,null,null,null,null,null,"Shopping",null,null,"Samir Fouad",null,null,null,null,null,null,null,null,null,1000746,null,null,null,0]
[null,null,null,null,null,null,null,null,null,null,null,null,"Shopping",null,null,"Samir Fouad",null,null,null,null,null,null,null,null,null,1000748,null,null,null,0]
[null,null,null,null,null,null,null,null,null,null,null,null,"10 $ Discount",null,null,"Samir Fouad",null,null,null,null,null,null,null,null,null,1000749,null,null,null,70]
[null,null,null,null,null,null,null,null,null,null,null,null,"Shopping",null,null,"Samir Fouad",null,null,null,null,null,null,null,null,null,1000750,null,null,null,0]
[null,null,null,null,null,null,null,null,null,null,null,null,null,null,null,"Samir Fouad",null,null,null,null,null,null,null,null,null,1000801,null,null,null,110]
[null,null,null,null,null,null,null,null,null,null,null,null,"Shopping",null,null,"Samir Fouad",null,null,null,null,null,null,null,null,null,1000802,null,null,null,0]
[null,null,null,null,null,null,null,null,null,null,null,null,null,null,null,"Samir Fouad",null,null,null,null,null,null,null,null,null,1000804,null,null,null,70]
[null,null,null,null,null,null,null,null,null,null,null,null,null,null,null,"Samir Fouad",null,null,null,null,null,null,null,null,null,1000805,null,null,null,80]
[null,null,null,null,null,null,null,null,null,null,null,null,null,null,null,"Samir Fouad",null,null,null,null,null,null,null,null,null,1000806,null,null,null,80]
[null,null,null,null,null,null,null,null,null,null,null,null,"Shopping",null,null,"Samir Fouad",null,null,null,null,null,null,null,null,null,1000807,null,null,null,0]
[null,null,null,null,null,null,null,null,null,null,null,null,"10 $ Discount",null,null,"Samir Fouad",null,null,null,null,null,null,null,null,null,1000808,null,null,null,60]
[null,null,null,null,null,null,null,null,null,null,null,null,"Shopping",null,null,"Samir Fouad",null,null,null,null,null,null,null,null,null,1000809,null,null,null,0]
[null,null,null,null,null,null,null,null,null,null,null,null,"20 $ Discount",null,null,"Samir Fouad",null,null,null,null,null,null,null,null,null,1000810,null,null,null,140]
[null,null,null,null,null,null,null,null,null,null,null,null,null,null,null,"Samir Fouad",null,null,null,null,null,null,null,null,null,1000811,null,null,null,80]
[null,null,null,null,null,null,null,null,null,null,null,null,null,null,null,"Samir Fouad",null,null,null,null,null,null,null,null,null,1000812,null,null,null,55]
[null,null,null,null,null,null,null,null,null,null,null,null,"Shopping",null,null,"Samir Fouad",null,null,null,null,null,null,null,null,null,1000814,null,null,null,0]
[null,null,null,null,null,null,null,null,null,null,null,null,"Shopping",null,null,"Samir Fouad",null,null,null,null,null,null,null,null,null,1000815,null,null,null,0]
[null,null,null,null,null,null,null,null,null,null,null,null,null,null,null,"Samir Fouad",null,null,null,null,null,null,null,null,null,1000816,null,null,null,160]
[null,null,null,null,null,null,null,null,null,null,null,null,null,null,null,"Samir Fouad",null,null,null,null,null,null,null,null,null,1000817,null,null,null,80]
[null,null,null,null,null,null,null,null,null,null,null,null,"Shopping",null,null,"Samir Fouad",null,null,null,null,null,null,null,null,null,1000818,null,null,null,0]
[null,null,null,null,null,null,null,null,null,null,null,null,null,null,null,"Samir Fouad",null,null,null,null,null,null,null,null,null,1000819,null,null,null,160]
[null,null,null,null,null,null,null,null,null,null,null,null,null,null,null,"Samir Fouad",null,null,null,null,null,null,null,null,null,1000820,null,null,null,120]
[null,null,null,null,null,null,null,null,null,null,null,null,null,null,null,"Samir Fouad",null,null,null,null,null,null,null,null,null,1000821,null,null,null,160]
[null,null,null,null,null,null,null,null,null,null,null,null,null,null,null,"Samir Fouad",null,null,null,null,null,null,null,null,null,1000822,null,null,null,120]
[null,null,null,null,null,null,null,null,null,null,null,null,"Shopping",null,null,"Samir Fouad",null,null,null,null,null,null,null,null,null,1000823,null,null,null,0]
[null,null,null,null,null,null,null,null,null,null,null,null,"Shopping",null,null,"Samir Fouad",null,null,null,null,null,null,null,null,null,1000824,null,null,null,0]
[null,null,null,null,null,null,null,null,null,null,null,null,"Shopping",null,null,"Samir Fouad",null,null,null,null,null,null,null,null,null,1000825,null,null,null,0]
[null,null,null,null,null,null,null,null,null,null,null,null,null,null,null,"Samir Fouad",null,null,null,null,null,null,null,null,null,1000826,null,null,null,70]
[null,null,null,null,null,null,null,null,null,null,null,null,"Shopping",null,null,"Samir Fouad",null,null,null,null,null,null,null,null,null,1000827,null,null,null,0]
[null,null,null,null,null,null,null,null,null,null,null,null,null,null,null,"Samir Fouad",null,null,null,null,null,null,null,null,null,1000828,null,null,null,120]
[null,null,null,null,null,null,null,null,null,null,null,null,null,null,null,"Samir Fouad",null,null,null,null,null,null,null,null,null,1000829,null,null,null,120]
[null,null,null,null,null,null,null,null,null,null,null,null,"20 $ Discount",null,null,"Samir Fouad",null,null,null,null,null,null,null,null,null,1000831,null,null,null,200]
[null,null,null,null,null,null,null,null,null,null,null,null,null,null,null,"Samir Fouad",null,null,null,null,null,null,null,null,null,1000832,null,null,null,320]
[null,null,null,null,null,null,null,null,null,null,null,null,"Shopping",null,null,"Samir Fouad",null,null,null,null,null,null,null,null,null,1000833,null,null,null,0]
[null,null,null,null,null,null,null,null,null,null,null,null,"Shopping",null,null,"Samir Fouad",null,null,null,null,null,null,null,null,null,1000834,null,null,null,0]
[null,null,null,null,null,null,null,null,null,null,null,null,null,null,null,"Samir Fouad",null,null,null,null,null,null,null,null,null,1000835,null,null,null,75]
[null,null,null,null,null,null,null,null,null,null,null,null,null,null,null,"Samir Fouad",null,null,null,null,null,null,null,null,null,1000836,null,null,null,55]
[null,null,null,null,null,null,null,null,null,null,null,null,"Shopping",null,null,"Samir Fouad",null,null,null,null,null,null,null,null,null,1000837,null,null,null,0]
[null,null,null,null,null,null,null,null,null,null,null,null,null,null,null,"Samir Fouad",null,null,null,null,null,null,null,null,null,1000838,null,null,null,60]
[null,null,null,null,null,null,null,null,null,null,null,null,"Shopping",null,null,"Samir Fouad",null,null,null,null,null,null,null,null,null,1000839,null,null,null,0]
[null,null,null,null,null,null,null,null,null,null,null,null,"Shopping",null,null,"Samir Fouad",null,null,null,null,null,null,null,null,null,1000840,null,null,null,0]
[null,null,null,null,null,null,null,null,null,null,null,null,"Shopping",null,null,"Samir Fouad",null,null,null,null,null,null,null,null,null,1000841,null,null,null,0]
[null,null,null,null,null,null,null,null,null,null,null,null,"Shopping",null,null,"Samir Fouad",null,null,null,null,null,null,null,null,null,1000843,null,null,null,0]
[null,null,null,null,null,null,null,null,null,null,null,null,"Shopping",null,null,"Samir Fouad",null,null,null,null,null,null,null,null,null,1000844,null,null,null,0]
[null,null,null,null,null,null,null,null,null,null,null,null,null,null,null,"Samir Fouad",null,null,null,null,null,null,null,null,null,1000845,null,null,null,30]
[null,null,null,null,null,null,null,null,null,null,null,null,"Shopping",null,null,"Samir Fouad",null,null,null,null,null,null,null,null,null,1000846,null,null,null,0]
[null,null,null,null,null,null,null,null,null,null,null,null,null,null,null,"Samir Fouad",null,null,null,null,null,null,null,null,null,1000847,null,null,null,80]
[null,null,null,null,null,null,null,null,null,null,null,null,"Shopping",null,null,"Samir Fouad",null,null,null,null,null,null,null,null,null,1000848,null,null,null,0]
[null,null,null,null,null,null,null,null,null,null,null,null,"10 $ Discount",null,null,"Samir Fouad",null,null,null,null,null,null,null,null,null,1000849,null,null,null,100]
[null,null,null,null,null,null,null,null,null,null,null,null,"Shopping",null,null,"Samir Fouad",null,null,null,null,null,null,null,null,null,1000850,null,null,null,0]
[null,null,null,null,null,null,null,null,null,null,null,null,null,null,null,"Samir Fouad",null,null,null,null,null,null,null,null,null,1001001,null,null,null,110]
[null,null,null,null,null,null,null,null,null,null,null,null,"Shopping",null,null,"Samir Fouad",null,null,null,null,null,null,null,null,null,1001002,null,null,null,0]
[null,null,null,null,null,null,null,null,null,null,null,null,null,null,null,"Samir Fouad",null,null,null,null,null,null,null,null,null,1001003,null,null,null,110]
[null,null,null,null,null,null,null,null,null,null,null,null,null,null,null,"Samir Fouad",null,null,null,null,null,null,null,null,null,1001004,null,null,null,60]
[null,null,null,null,null,null,null,null,null,null,null,null,"Shopping",null,null,"Samir Fouad",null,null,null,null,null,null,null,null,null,1001005,null,null,null,0]
[null,null,null,null,null,null,null,null,null,null,null,null,null,null,null,"Samir Fouad",null,null,null,null,null,null,null,null,null,1001006,null,null,null,110]
[null,null,null,null,null,null,null,null,null,null,null,null,"10 $ Discount",null,null,"Samir Fouad",null,null,null,null,null,null,null,null,null,1001007,null,null,null,100]
[null,null,null,null,null,null,null,null,null,null,null,null,"Shopping",null,null,"Samir Fouad",null,null,null,null,null,null,null,null,null,1001008,null,null,null,0]
[null,null,null,null,null,null,null,null,null,null,null,null,null,null,null,"Samir Fouad",null,null,null,null,null,null,null,null,null,1001009,null,null,null,110]
[null,null,null,null,null,null,null,null,null,null,null,null,"Shopping",null,null,"Samir Fouad",null,null,null,null,null,null,null,null,null,1001010,null,null,null,0]
[null,null,null,null,null,null,null,null,null,null,null,null,"Shopping",null,null,"Samir Fouad",null,null,null,null,null,null,null,null,null,1001011,null,null,null,0]
[null,null,null,null,null,null,null,null,null,null,null,null,null,null,null,"Samir Fouad",null,null,null,null,null,null,null,null,null,1001012,null,null,null,55]
[null,null,null,null,null,null,null,null,null,null,null,null,"Shopping",null,null,"Samir Fouad",null,null,null,null,null,null,null,null,null,1001013,null,null,null,0]
[null,null,null,null,null,null,null,null,null,null,null,null,"Shopping",null,null,"Samir Fouad",null,null,null,null,null,null,null,null,null,1001014,null,null,null,0]
[null,null,null,null,null,null,null,null,null,null,null,null,"Shopping",null,null,"Samir Fouad",null,null,null,null,null,null,null,null,null,1001015,null,null,null,0]
[null,null,null,null,null,null,null,null,null,null,null,null,"10 $ Discount",null,null,"Samir Fouad",null,null,null,null,null,null,null,null,null,1001016,null,null,null,110]
[null,null,null,null,null,null,null,null,null,null,null,null,null,null,null,"Samir Fouad",null,null,null,null,null,null,null,null,null,1001017,null,null,null,110]
[null,null,null,null,null,null,null,null,null,null,null,null,"10 $ Discount",null,null,"Samir Fouad",null,null,null,null,null,null,null,null,null,1001018,null,null,null,100]
[null,null,null,null,null,null,null,null,null,null,null,null,"Shopping",null,null,"Samir Fouad",null,null,null,null,null,null,null,null,null,1001019,null,null,null,0]
[null,null,null,null,null,null,null,null,null,null,null,null,"10 $ Discount",null,null,"Samir Fouad",null,null,null,null,null,null,null,null,null,1001020,null,null,null,100]
[null,null,null,null,null,null,null,null,null,null,null,null,"Shopping",null,null,"Samir Fouad",null,null,null,null,null,null,null,null,null,1001021,null,null,null,0]
[null,null,null,null,null,null,null,null,null,null,null,null,null,null,null,"Samir Fouad",null,null,null,null,null,null,null,null,null,1001022,null,null,null,99]
[null,null,null,null,null,null,null,null,null,null,null,null,"35$ Discount",null,null,"Samir Fouad",null,null,null,null,null,null,null,null,null,1001023,null,null,null,25]
[null,null,null,null,null,null,null,null,null,null,null,null,"Shopping",null,null,"Samir Fouad",null,null,null,null,null,null,null,null,null,1001024,null,null,null,0]
[null,null,null,null,null,null,null,null,null,null,null,null,"Shopping",null,null,"Samir Fouad",null,null,null,null,null,null,null,null,null,1001025,null,null,null,0]
[null,null,null,null,null,null,null,null,null,null,null,null,"5 $ Discount",null,null,"Samir Fouad",null,null,null,null,null,null,null,null,null,1001026,null,null,null,25]
[null,null,null,null,null,null,null,null,null,null,null,null,"5 $ Discount",null,null,"Samir Fouad",null,null,null,null,null,null,null,null,null,1001027,null,null,null,50]
[null,null,null,null,null,null,null,null,null,null,null,null,"10 $ Discount",null,null,"Samir Fouad",null,null,null,null,null,null,null,null,null,1001028,null,null,null,50]
[null,null,null,null,null,null,null,null,null,null,null,null,null,null,null,"Samir Fouad",null,null,null,null,null,null,null,null,null,1001029,null,null,null,198]
[null,null,null,null,null,null,null,null,null,null,null,null,"10 $ Discount",null,null,"Samir Fouad",null,null,null,null,null,null,null,null,null,1001030,null,null,null,100]
[null,null,null,null,null,null,null,null,null,null,null,null,"5 $ Discount",null,null,"Samir Fouad",null,null,null,null,null,null,null,null,null,1001031,null,null,null,25]
[null,null,null,null,null,null,null,null,null,null,null,null,"10 $ Discount",null,null,"Samir Fouad",null,null,null,null,null,null,null,null,null,1001032,null,null,null,100]
[null,null,null,null,null,null,null,null,null,null,null,null,null,null,null,"Samir Fouad",null,null,null,null,null,null,null,null,null,1001033,null,null,null,99]
[null,null,null,null,null,null,null,null,null,null,null,null,"Shopping",null,null,"Samir Fouad",null,null,null,null,null,null,null,null,null,1001034,null,null,null,0]
[null,null,null,null,null,null,null,null,null,null,null,null,null,null,null,"Samir Fouad",null,null,null,null,null,null,null,null,null,1001035,null,null,null,120]
[null,null,null,null,null,null,null,null,null,null,null,null,null,null,null,"Samir Fouad",null,null,null,null,null,null,null,null,null,1001036,null,null,null,220]
[null,null,null,null,null,null,null,null,null,null,null,null,"Shopping",null,null,"Samir Fouad",null,null,null,null,null,null,null,null,null,1001037,null,null,null,0]
[null,null,null,null,null,null,null,null,null,null,null,null,null,null,null,"Samir Fouad",null,null,null,null,null,null,null,null,null,1001038,null,null,null,110]
[null,null,null,null,null,null,null,null,null,null,null,null,null,null,null,"Samir Fouad",null,null,null,null,null,null,null,null,null,1001039,null,null,null,160]
[null,null,null,null,null,null,null,null,null,null,null,null,"Shopping",null,null,"Samir Fouad",null,null,null,null,null,null,null,null,null,1001040,null,null,null,0]
[null,null,null,null,null,null,null,null,null,null,null,null,null,null,null,"Samir Fouad",null,null,null,null,null,null,null,null,null,1001041,null,null,null,45]
[null,null,null,null,null,null,null,null,null,null,null,null,null,null,null,"Samir Fouad",null,null,null,null,null,null,null,null,null,1001042,null,null,null,120]
[null,null,null,null,null,null,null,null,null,null,null,null,"Shopping",null,null,"Samir Fouad",null,null,null,null,null,null,null,null,null,1001043,null,null,null,0]
[null,null,null,null,null,null,null,null,null,null,null,null,null,null,null,"Samir Fouad",null,null,null,null,null,null,null,null,null,1001044,null,null,null,60]
[null,null,null,null,null,null,null,null,null,null,null,null,"Shopping",null,null,"Samir Fouad",null,null,null,null,null,null,null,null,null,1001045,null,null,null,0]
[null,null,null,null,null,null,null,null,null,null,null,null,null,null,null,"Samir Fouad",null,null,null,null,null,null,null,null,null,1001046,null,null,null,160]
[null,null,null,null,null,null,null,null,null,null,null,null,"Shopping",null,null,"Samir Fouad",null,null,null,null,null,null,null,null,null,1001047,null,null,null,0]
[null,null,null,null,null,null,null,null,null,null,null,null,null,null,null,"Samir Fouad",null,null,null,null,null,null,null,null,null,1001048,null,null,null,80]
[null,null,null,null,null,null,null,null,null,null,null,null,null,null,null,"Samir Fouad",null,null,null,null,null,null,null,null,null,1001049,null,null,null,60]
[null,null,null,null,null,null,null,null,null,null,null,null,"5 $ Discount",null,null,"Samir Fouad",null,null,null,null,null,null,null,null,null,1001050,null,null,null,40]
[null,null,null,null,null,null,null,null,null,null,null,null,"Shopping",null,null,"Samir Fouad",null,null,null,null,null,null,null,null,null,1001051,null,null,null,0]
[null,null,null,null,null,null,null,null,null,null,null,null,null,null,null,"Samir Fouad",null,null,null,null,null,null,null,null,null,1001052,null,null,null,55]
[null,null,null,null,null,null,null,null,null,null,null,null,null,null,null,"Samir Fouad",null,null,null,null,null,null,null,null,null,1001053,null,null,null,40]
[null,null,null,null,null,null,null,null,null,null,null,null,"Shopping",null,null,"Samir Fouad",null,null,null,null,null,null,null,null,null,1001054,null,null,null,0]
[null,null,null,null,null,null,null,null,null,null,null,null,null,null,null,"Samir Fouad",null,null,null,null,null,null,null,null,null,1001055,null,null,null,320]
[null,null,null,null,null,null,null,null,null,null,null,null,"Shopping",null,null,"Samir Fouad",null,null,null,null,null,null,null,null,null,1001056,null,null,null,0]
[null,null,null,null,null,null,null,null,null,null,null,null,null,null,null,null,null,null,null,null,null,null,null,null,null,null,null,null,null,{"$f":"SUM(AD3:AD223)","v":14826}]

{"sheet":"Samir Fouad","index":1,"n_rows":245,"n_cols":11,"rows_kept":245,"cut":false,"hidden":false,"merged":[[37,0,37,1],[0,0,0,1],[0,4,1,4],[2,0,2,4],[4,0,4,4],[39,0,39,4],[41,0,41,1],[41,4,42,4],[43,0,43,4],[45,0,45,4],[86,0,86,4],[78,0,78,1],[80,0,80,4],[82,0,82,1],[82,4,83,4],[84,0,84,4],[123,4,124,4],[125,0,125,4],[127,0,127,4],[119,0,119,1],[121,0,121,4],[207,0,207,4],[209,0,209,4],[242,0,242,1],[244,0,244,4],[21,10,22,15],[162,0,162,4],[164,0,164,1],[164,4,165,4],[166,0,166,4],[168,0,168,4],[201,0,201,1],[203,0,203,4],[205,0,205,1],[205,4,206,4],[160,0,160,1],[123,0,123,1]]}
[{"$f":"TODAY()","v":"2021-01-19"},null,null,null,1]
[]
["Company :Safari Company"]
[]
["Guide Name: Samir Fouad"]
[]
["No.","Voucher no.","Cash",null,"Remarks"]
[{"$f":"IF(B8=\"\",\"\",SUBTOTAL(3,$B$8:B8))","v":1},1000217,110]
[{"$f":"IF(B9=\"\",\"\",SUBTOTAL(3,$B$8:B9))","v":2},1000218,60]
[{"$f":"IF(B10=\"\",\"\",SUBTOTAL(3,$B$8:B10))","v":3},1000219,110]
[{"$f":"IF(B11=\"\",\"\",SUBTOTAL(3,$B$8:B11))","v":4},1000220,60]
[{"$f":"IF(B12=\"\",\"\",SUBTOTAL(3,$B$8:B12))","v":5},1000223,110]
[{"$f":"IF(B13=\"\",\"\",SUBTOTAL(3,$B$8:B13))","v":6},1000224,60]
[{"$f":"IF(B14=\"\",\"\",SUBTOTAL(3,$B$8:B14))","v":7},1000226,70]
[{"$f":"IF(B15=\"\",\"\",SUBTOTAL(3,$B$8:B15))","v":8},1000228,110,null,"20 $ Discount"]
[{"$f":"IF(B16=\"\",\"\",SUBTOTAL(3,$B$8:B16))","v":9},1000229,50,null,"10 $ Discount"]
[{"$f":"IF(B17=\"\",\"\",SUBTOTAL(3,$B$8:B17))","v":10},1000233,30]
[{"$f":"IF(B18=\"\",\"\",SUBTOTAL(3,$B$8:B18))","v":11},1000234,60,null,"10 $ Discount"]
[{"$f":"IF(B19=\"\",\"\",SUBTOTAL(3,$B$8:B19))","v":12},1000238,60,null,"10 $ Discount"]
[{"$f":"IF(B20=\"\",\"\",SUBTOTAL(3,$B$8:B20))","v":13},1000239,0,null,"Shopping"]
[{"$f":"IF(B21=\"\",\"\",SUBTOTAL(3,$B$8:B21))","v":14},1000240,25,null,"5 $ Discount"]
[{"$f":"IF(B22=\"\",\"\",SUBTOTAL(3,$B$8:B22))","v":15},1000241,30,null,null,null,null,null,null,null,"هذه شكل النتائج المطلوبة والبيانات المطلوب ترحيلها \nمن صفحة Main"]
[{"$f":"IF(B23=\"\",\"\",SUBTOTAL(3,$B$8:B23))","v":16},1000242,110]
[{"$f":"IF(B24=\"\",\"\",SUBTOTAL(3,$B$8:B24))","v":17},1000243,0,null,"Shopping"]
[{"$f":"IF(B25=\"\",\"\",SUBTOTAL(3,$B$8:B25))","v":18},1000244,160]
[{"$f":"IF(B26=\"\",\"\",SUBTOTAL(3,$B$8:B26))","v":19},1000245,0,null,"Shopping"]
[{"$f":"IF(B27=\"\",\"\",SUBTOTAL(3,$B$8:B27))","v":20},1000247,80]
[{"$f":"IF(B28=\"\",\"\",SUBTOTAL(3,$B$8:B28))","v":21},1000248,0,null,"Shopping"]
[{"$f":"IF(B29=\"\",\"\",SUBTOTAL(3,$B$8:B29))","v":22},1000249,0,null,"Shopping"]
[{"$f":"IF(B30=\"\",\"\",SUBTOTAL(3,$B$8:B30))","v":23},1000250,100]
[{"$f":"IF(B31=\"\",\"\",SUBTOTAL(3,$B$8:B31))","v":24},1000575,40]
[{"$f":"IF(B32=\"\",\"\",SUBTOTAL(3,$B$8:B32))","v":25},1000588,0,null,"Shopping"]
[{"$f":"IF(B33=\"\",\"\",SUBTOTAL(3,$B$8:B33))","v":26},1000701,60]
[{"$f":"IF(B34=\"\",\"\",SUBTOTAL(3,$B$8:B34))","v":27},1000702,80]
[{"$f":"IF(B35=\"\",\"\",SUBTOTAL(3,$B$8:B35))","v":28},1000703,0,null,"Shopping"]
[{"$f":"IF(B36=\"\",\"\",SUBTOTAL(3,$B$8:B36))","v":29},1000704,80]
[{"$f":"IF(B37=\"\",\"\",SUBTOTAL(3,$B$8:B37))","v":30},1000706,200]
["Total :",null,{"$f":"SUM(C8:C37)","v":1855}]
[]
["Guide Signature :…………………………………………………………………………………………………….."]
[]
[{"$f":"TODAY()","v":"2021-01-19"},null,null,null,2]
[]
["Company :Safari Company"]
[]
["Guide Name: Samir Fouad"]
[]
["No.","Voucher no.","Cash",null,"Remarks"]
[{"$f":"IF(B49=\"\",\"\",SUBTOTAL(3,$B$49:B49))","v":1},1000707,70]
[{"$f":"IF(B50=\"\",\"\",SUBTOTAL(3,$B$49:B50))","v":2},1000708,0,null,"Shopping"]
[{"$f":"IF(B51=\"\",\"\",SUBTOTAL(3,$B$49:B51))","v":3},1000709,80]
[{"$f":"IF(B52=\"\",\"\",SUBTOTAL(3,$B$49:B52))","v":4},1000710,35]
[{"$f":"IF(B53=\"\",\"\",SUBTOTAL(3,$B$49:B53))","v":5},1000711,0,null,"Shopping"]
[{"$f":"IF(B54=\"\",\"\",SUBTOTAL(3,$B$49:B54))","v":6},1000712,40]
[{"$f":"IF(B55=\"\",\"\",SUBTOTAL(3,$B$49:B55))","v":7},1000713,208,null,"5 $ Discount"]
[{"$f":"IF(B56=\"\",\"\",SUBTOTAL(3,$B$49:B56))","v":8},1000714,95,null,"5 $ Discount"]
[{"$f":"IF(B57=\"\",\"\",SUBTOTAL(3,$B$49:B57))","v":9},1000715,30,null,"5 $ Discount"]
[{"$f":"IF(B58=\"\",\"\",SUBTOTAL(3,$B$49:B58))","v":10},1000716,0,null,"Shopping"]
[{"$f":"IF(B59=\"\",\"\",SUBTOTAL(3,$B$49:B59))","v":11},1000717,55]
[{"$f":"IF(B60=\"\",\"\",SUBTOTAL(3,$B$49:B60))","v":12},1000718,95]
[{"$f":"IF(B61=\"\",\"\",SUBTOTAL(3,$B$49:B61))","v":13},1000719,0,null,"Shopping"]
[{"$f":"IF(B62=\"\",\"\",SUBTOTAL(3,$B$49:B62))","v":14},1000720,90]
[{"$f":"IF(B63=\"\",\"\",SUBTOTAL(3,$B$49:B63))","v":15},1000721,110]
[{"$f":"IF(B64=\"\",\"\",SUBTOTAL(3,$B$49:B64))","v":16},1000723,0,null,"Shopping"]
[{"$f":"IF(B65=\"\",\"\",SUBTOTAL(3,$B$49:B65))","v":17},1000724,110,null,"10 $ Discount"]
[{"$f":"IF(B66=\"\",\"\",SUBTOTAL(3,$B$49:B66))","v":18},1000725,0,null,"Shopping"]
[{"$f":"IF(B67=\"\",\"\",SUBTOTAL(3,$B$49:B67))","v":19},1000726,80]
[{"$f":"IF(B68=\"\",\"\",SUBTOTAL(3,$B$49:B68))","v":20},1000727,0,null,"Shopping"]
[{"$f":"IF(B69=\"\",\"\",SUBTOTAL(3,$B$49:B69))","v":21},1000728,90,null,"15 $ Discount"]
[{"$f":"IF(B70=\"\",\"\",SUBTOTAL(3,$B$49:B70))","v":22},1000729,30,null,"5 $ Discount"]
[{"$f":"IF(B71=\"\",\"\",SUBTOTAL(3,$B$49:B71))","v":23},1000730,110]
[{"$f":"IF(B72=\"\",\"\",SUBTOTAL(3,$B$49:B72))","v":24},1000731,0,null,"Shopping"]
[{"$f":"IF(B73=\"\",\"\",SUBTOTAL(3,$B$49:B73))","v":25},1000732,0,null,"Shopping"]
[{"$f":"IF(B74=\"\",\"\",SUBTOTAL(3,$B$49:B74))","v":26},1000733,160]
[{"$f":"IF(B75=\"\",\"\",SUBTOTAL(3,$B$49:B75))","v":27},1000734,160]
[{"$f":"IF(B76=\"\",\"\",SUBTOTAL(3,$B$49:B76))","v":28},1000735,110]
[{"$f":"IF(B77=\"\",\"\",SUBTOTAL(3,$B$49:B77))","v":29},1000736,160]
[{"$f":"IF(B78=\"\",\"\",SUBTOTAL(3,$B$49:B78))","v":30},1000737,110]
["Total :",null,{"$f":"SUM(C49:C78)","v":2028}]
[]
["Guide Signature :…………………………………………………………………………………………………….."]
[]
[{"$f":"TODAY()","v":"2021-01-19"},null,null,null,3]
[]
["Company :Safari Company"]
[]
["Guide Name: Samir Fouad"]
[]
["No.","Voucher no.","Cash",null,"Remarks"]
[{"$f":"IF(B90=\"\",\"\",SUBTOTAL(3,$B$90:B90))","v":1},1000738,160]
[{"$f":"IF(B91=\"\",\"\",SUBTOTAL(3,$B$90:B91))","v":2},1000739,110]
[{"$f":"IF(B92=\"\",\"\",SUBTOTAL(3,$B$90:B92))","v":3},1000740,160]
[{"$f":"IF(B93=\"\",\"\",SUBTOTAL(3,$B$90:B93))","v":4},1000741,240]
[{"$f":"IF(B94=\"\",\"\",SUBTOTAL(3,$B$90:B94))","v":5},1000742,0,null,"Shopping"]
[{"$f":"IF(B95=\"\",\"\",SUBTOTAL(3,$B$90:B95))","v":6},1000743,240]
[{"$f":"IF(B96=\"\",\"\",SUBTOTAL(3,$B$90:B96))","v":7},1000744,186]
[{"$f":"IF(B97=\"\",\"\",SUBTOTAL(3,$B$90:B97))","v":8},1000745,106]
[{"$f":"IF(B98=\"\",\"\",SUBTOTAL(3,$B$90:B98))","v":9},1000746,0,null,"Shopping"]
[{"$f":"IF(B99=\"\",\"\",SUBTOTAL(3,$B$90:B99))","v":10},1000748,0,null,"Shopping"]
[{"$f":"IF(B100=\"\",\"\",SUBTOTAL(3,$B$90:B100))","v":11},1000749,70,null,"10 $ Discount"]
[{"$f":"IF(B101=\"\",\"\",SUBTOTAL(3,$B$90:B101))","v":12},1000750,0,null,"Shopping"]
[{"$f":"IF(B102=\"\",\"\",SUBTOTAL(3,$B$90:B102))","v":13},1000801,110]
[{"$f":"IF(B103=\"\",\"\",SUBTOTAL(3,$B$90:B103))","v":14},1000802,0,null,"Shopping"]
[{"$f":"IF(B104=\"\",\"\",SUBTOTAL(3,$B$90:B104))","v":15},1000804,70]
[{"$f":"IF(B105=\"\",\"\",SUBTOTAL(3,$B$90:B105))","v":16},1000805,80]
[{"$f":"IF(B106=\"\",\"\",SUBTOTAL(3,$B$90:B106))","v":17},1000806,80]
[{"$f":"IF(B107=\"\",\"\",SUBTOTAL(3,$B$90:B107))","v":18},1000807,0,null,"Shopping"]
[{"$f":"IF(B108=\"\",\"\",SUBTOTAL(3,$B$90:B108))","v":19},1000808,60,null,"10 $ Discount"]
[{"$f":"IF(B109=\"\",\"\",SUBTOTAL(3,$B$90:B109))","v":20},1000809,0,null,"Shopping"]
[{"$f":"IF(B110=\"\",\"\",SUBTOTAL(3,$B$90:B110))","v":21},1000810,140,null,"20 $ Discount"]
[{"$f":"IF(B111=\"\",\"\",SUBTOTAL(3,$B$90:B111))","v":22},1000811,80]
[{"$f":"IF(B112=\"\",\"\",SUBTOTAL(3,$B$90:B112))","v":23},1000812,55]
[{"$f":"IF(B113=\"\",\"\",SUBTOTAL(3,$B$90:B113))","v":24},1000814,0,null,"Shopping"]
[{"$f":"IF(B114=\"\",\"\",SUBTOTAL(3,$B$90:B114))","v":25},1000815,0,null,"Shopping"]
[{"$f":"IF(B115=\"\",\"\",SUBTOTAL(3,$B$90:B115))","v":26},1000816,160]
[{"$f":"IF(B116=\"\",\"\",SUBTOTAL(3,$B$90:B116))","v":27},1000817,80]
[{"$f":"IF(B117=\"\",\"\",SUBTOTAL(3,$B$90:B117))","v":28},1000818,0,null,"Shopping"]
[{"$f":"IF(B118=\"\",\"\",SUBTOTAL(3,$B$90:B118))","v":29},1000819,160]
[{"$f":"IF(B119=\"\",\"\",SUBTOTAL(3,$B$90:B119))","v":30},1000820,120]
["Total :",null,{"$f":"SUM(C90:C119)","v":2467}]
[]
["Guide Signature :…………………………………………………………………………………………………….."]
[]
[{"$f":"TODAY()","v":"2021-01-19"},null,null,null,4]
[]
["Company :Safari Company"]
[]
["Guide Name: Samir Fouad"]
[]
["No.","Voucher no.","Cash",null,"Remarks"]
[{"$f":"IF(B131=\"\",\"\",SUBTOTAL(3,$B$131:B131))","v":1},1000821,160]
[{"$f":"IF(B132=\"\",\"\",SUBTOTAL(3,$B$131:B132))","v":2},1000822,120]
[{"$f":"IF(B133=\"\",\"\",SUBTOTAL(3,$B$131:B133))","v":3},1000823,0,null,"Shopping"]
[{"$f":"IF(B134=\"\",\"\",SUBTOTAL(3,$B$131:B134))","v":4},1000824,0,null,"Shopping"]
[{"$f":"IF(B135=\"\",\"\",SUBTOTAL(3,$B$131:B135))","v":5},1000825,0,null,"Shopping"]
[{"$f":"IF(B136=\"\",\"\",SUBTOTAL(3,$B$131:B136))","v":6},1000826,70]
[{"$f":"IF(B137=\"\",\"\",SUBTOTAL(3,$B$131:B137))","v":7},1000827,0,null,"Shopping"]
[{"$f":"IF(B138=\"\",\"\",SUBTOTAL(3,$B$131:B138))","v":8},1000828,120]
[{"$f":"IF(B139=\"\",\"\",SUBTOTAL(3,$B$131:B139))","v":9},1000829,120]
[{"$f":"IF(B140=\"\",\"\",SUBTOTAL(3,$B$131:B140))","v":10},1000831,200,null,"20 $ Discount"]
[{"$f":"IF(B141=\"\",\"\",SUBTOTAL(3,$B$131:B141))","v":11},1000832,320]
[{"$f":"IF(B142=\"\",\"\",SUBTOTAL(3,$B$131:B142))","v":12},1000833,0,null,"Shopping"]
[{"$f":"IF(B143=\"\",\"\",SUBTOTAL(3,$B$131:B143))","v":13},1000834,0,null,"Shopping"]
[{"$f":"IF(B144=\"\",\"\",SUBTOTAL(3,$B$131:B144))","v":14},1000835,75]
[{"$f":"IF(B145=\"\",\"\",SUBTOTAL(3,$B$131:B145))","v":15},1000836,55]
[{"$f":"IF(B146=\"\",\"\",SUBTOTAL(3,$B$131:B146))","v":16},1000837,0,null,"Shopping"]
[{"$f":"IF(B147=\"\",\"\",SUBTOTAL(3,$B$131:B147))","v":17},1000838,60]
[{"$f":"IF(B148=\"\",\"\",SUBTOTAL(3,$B$131:B148))","v":18},1000839,0,null,"Shopping"]
[{"$f":"IF(B149=\"\",\"\",SUBTOTAL(3,$B$131:B149))","v":19},1000840,0,null,"Shopping"]
[{"$f":"IF(B150=\"\",\"\",SUBTOTAL(3,$B$131:B150))","v":20},1000841,0,null,"Shopping"]
[{"$f":"IF(B151=\"\",\"\",SUBTOTAL(3,$B$131:B151))","v":21},1000843,0,null,"Shopping"]
[{"$f":"IF(B152=\"\",\"\",SUBTOTAL(3,$B$131:B152))","v":22},1000844,0,null,"Shopping"]
[{"$f":"IF(B153=\"\",\"\",SUBTOTAL(3,$B$131:B153))","v":23},1000845,30]
[{"$f":"IF(B154=\"\",\"\",SUBTOTAL(3,$B$131:B154))","v":24},1000846,0,null,"Shopping"]
[{"$f":"IF(B155=\"\",\"\",SUBTOTAL(3,$B$131:B155))","v":25},1000847,80]
[{"$f":"IF(B156=\"\",\"\",SUBTOTAL(3,$B$131:B156))","v":26},1000848,0,null,"Shopping"]
[{"$f":"IF(B157=\"\",\"\",SUBTOTAL(3,$B$131:B157))","v":27},1000849,100,null,"10 $ Discount"]
[{"$f":"IF(B158=\"\",\"\",SUBTOTAL(3,$B$131:B158))","v":28},1000850,0,null,"Shopping"]
[{"$f":"IF(B159=\"\",\"\",SUBTOTAL(3,$B$131:B159))","v":29},1001001,110]
[{"$f":"IF(B160=\"\",\"\",SUBTOTAL(3,$B$131:B160))","v":30},1001002,0,null,"Shopping"]
["Total :",null,{"$f":"SUM(C131:C160)","v":1620}]
[]
["Guide Signature :…………………………………………………………………………………………………….."]
[]
[{"$f":"TODAY()","v":"2021-01-19"},null,null,null,5]
[]
["Company :Safari Company"]
[]
["Guide Name: Samir Fouad"]
[]
["No.","Voucher no.","Cash",null,"Remarks"]
[{"$f":"IF(B172=\"\",\"\",SUBTOTAL(3,$B$172:B172))","v":1},1001003,110]
[{"$f":"IF(B173=\"\",\"\",SUBTOTAL(3,$B$172:B173))","v":2},1001004,60]
[{"$f":"IF(B174=\"\",\"\",SUBTOTAL(3,$B$172:B174))","v":3},1001005,0,null,"Shopping"]
[{"$f":"IF(B175=\"\",\"\",SUBTOTAL(3,$B$172:B175))","v":4},1001006,110]
[{"$f":"IF(B176=\"\",\"\",SUBTOTAL(3,$B$172:B176))","v":5},1001007,100,null,"10 $ Discount"]
[{"$f":"IF(B177=\"\",\"\",SUBTOTAL(3,$B$172:B177))","v":6},1001008,0,null,"Shopping"]
[{"$f":"IF(B178=\"\",\"\",SUBTOTAL(3,$B$172:B178))","v":7},1001009,110]
[{"$f":"IF(B179=\"\",\"\",SUBTOTAL(3,$B$172:B179))","v":8},1001010,0,null,"Shopping"]
[{"$f":"IF(B180=\"\",\"\",SUBTOTAL(3,$B$172:B180))","v":9},1001011,0,null,"Shopping"]
[{"$f":"IF(B181=\"\",\"\",SUBTOTAL(3,$B$172:B181))","v":10},1001012,55]
[{"$f":"IF(B182=\"\",\"\",SUBTOTAL(3,$B$172:B182))","v":11},1001013,0,null,"Shopping"]
[{"$f":"IF(B183=\"\",\"\",SUBTOTAL(3,$B$172:B183))","v":12},1001014,0,null,"Shopping"]
[{"$f":"IF(B184=\"\",\"\",SUBTOTAL(3,$B$172:B184))","v":13},1001015,0,null,"Shopping"]
[{"$f":"IF(B185=\"\",\"\",SUBTOTAL(3,$B$172:B185))","v":14},1001016,110,null,"10 $ Discount"]
[{"$f":"IF(B186=\"\",\"\",SUBTOTAL(3,$B$172:B186))","v":15},1001017,110]
[{"$f":"IF(B187=\"\",\"\",SUBTOTAL(3,$B$172:B187))","v":16},1001018,100,null,"10 $ Discount"]
[{"$f":"IF(B188=\"\",\"\",SUBTOTAL(3,$B$172:B188))","v":17},1001019,0,null,"Shopping"]
[{"$f":"IF(B189=\"\",\"\",SUBTOTAL(3,$B$172:B189))","v":18},1001020,100,null,"10 $ Discount"]
[{"$f":"IF(B190=\"\",\"\",SUBTOTAL(3,$B$172:B190))","v":19},1001021,0,null,"Shopping"]
[{"$f":"IF(B191=\"\",\"\",SUBTOTAL(3,$B$172:B191))","v":20},1001022,99]
[{"$f":"IF(B192=\"\",\"\",SUBTOTAL(3,$B$172:B192))","v":21},1001023,25,null,"35$ Discount"]
[{"$f":"IF(B193=\"\",\"\",SUBTOTAL(3,$B$172:B193))","v":22},1001024,0,null,"Shopping"]
[{"$f":"IF(B194=\"\",\"\",SUBTOTAL(3,$B$172:B194))","v":23},1001025,0,null,"Shopping"]
[{"$f":"IF(B195=\"\",\"\",SUBTOTAL(3,$B$172:B195))","v":24},1001026,25,null,"5 $ Discount"]
[{"$f":"IF(B196=\"\",\"\",SUBTOTAL(3,$B$172:B196))","v":25},1001027,50,null,"5 $ Discount"]
[{"$f":"IF(B197=\"\",\"\",SUBTOTAL(3,$B$172:B197))","v":26},1001028,50,null,"10 $ Discount"]
[{"$f":"IF(B198=\"\",\"\",SUBTOTAL(3,$B$172:B198))","v":27},1001029,198]
[{"$f":"IF(B199=\"\",\"\",SUBTOTAL(3,$B$172:B199))","v":28},1001030,100,null,"10 $ Discount"]
[{"$f":"IF(B200=\"\",\"\",SUBTOTAL(3,$B$172:B200))","v":29},1001031,25,null,"5 $ Discount"]
[{"$f":"IF(B201=\"\",\"\",SUBTOTAL(3,$B$172:B201))","v":30},1001032,100,null,"10 $ Discount"]
["Total :",null,{"$f":"SUM(C172:C201)","v":1637}]
[]
["Guide Signature :…………………………………………………………………………………………………….."]
[]
[{"$f":"TODAY()","v":"2021-01-19"},null,null,null,6]
[]
["Company :Safari Company"]
[]
["Guide Name: Samir Fouad"]
[]
["No.","Voucher no.","Cash",null,"Remarks"]
[{"$f":"IF(B213=\"\",\"\",SUBTOTAL(3,$B$213:B213))","v":1},1001033,99]
[{"$f":"IF(B214=\"\",\"\",SUBTOTAL(3,$B$213:B214))","v":2},1001034,0,null,"Shopping"]
[{"$f":"IF(B215=\"\",\"\",SUBTOTAL(3,$B$213:B215))","v":3},1001035,120]
[{"$f":"IF(B216=\"\",\"\",SUBTOTAL(3,$B$213:B216))","v":4},1001036,220]
[{"$f":"IF(B217=\"\",\"\",SUBTOTAL(3,$B$213:B217))","v":5},1001037,0,null,"Shopping"]
[{"$f":"IF(B218=\"\",\"\",SUBTOTAL(3,$B$213:B218))","v":6},1001038,110]
[{"$f":"IF(B219=\"\",\"\",SUBTOTAL(3,$B$213:B219))","v":7},1001039,160]
[{"$f":"IF(B220=\"\",\"\",SUBTOTAL(3,$B$213:B220))","v":8},1001040,0,null,"Shopping"]
[{"$f":"IF(B221=\"\",\"\",SUBTOTAL(3,$B$213:B221))","v":9},1001041,45]
[{"$f":"IF(B222=\"\",\"\",SUBTOTAL(3,$B$213:B222))","v":10},1001042,120]
[{"$f":"IF(B223=\"\",\"\",SUBTOTAL(3,$B$213:B223))","v":11},1001043,0,null,"Shopping"]
[{"$f":"IF(B224=\"\",\"\",SUBTOTAL(3,$B$213:B224))","v":12},1001044,60]
[{"$f":"IF(B225=\"\",\"\",SUBTOTAL(3,$B$213:B225))","v":13},1001045,0,null,"Shopping"]
[{"$f":"IF(B226=\"\",\"\",SUBTOTAL(3,$B$213:B226))","v":14},1001046,160]
[{"$f":"IF(B227=\"\",\"\",SUBTOTAL(3,$B$213:B227))","v":15},1001047,0,null,"Shopping"]
[{"$f":"IF(B228=\"\",\"\",SUBTOTAL(3,$B$213:B228))","v":16},1001048,80]
[{"$f":"IF(B229=\"\",\"\",SUBTOTAL(3,$B$213:B229))","v":17},1001049,60]
[{"$f":"IF(B230=\"\",\"\",SUBTOTAL(3,$B$213:B230))","v":18},1001050,40,null,"5 $ Discount"]
[{"$f":"IF(B231=\"\",\"\",SUBTOTAL(3,$B$213:B231))","v":19},1001051,0,null,"Shopping"]
[{"$f":"IF(B232=\"\",\"\",SUBTOTAL(3,$B$213:B232))","v":20},1001052,55]
[{"$f":"IF(B233=\"\",\"\",SUBTOTAL(3,$B$213:B233))","v":21},1001053,40]
[{"$f":"IF(B234=\"\",\"\",SUBTOTAL(3,$B$213:B234))","v":22},1001054,0,null,"Shopping"]
[{"$f":"IF(B235=\"\",\"\",SUBTOTAL(3,$B$213:B235))","v":23},1001055,320]
[{"$f":"IF(B236=\"\",\"\",SUBTOTAL(3,$B$213:B236))","v":24},1001056,0,null,"Shopping"]
[{"$f":"IF(B237=\"\",\"\",SUBTOTAL(3,$B$213:B237))","v":""}]
[{"$f":"IF(B238=\"\",\"\",SUBTOTAL(3,$B$213:B238))","v":""}]
[{"$f":"IF(B239=\"\",\"\",SUBTOTAL(3,$B$213:B239))","v":""}]
[{"$f":"IF(B240=\"\",\"\",SUBTOTAL(3,$B$213:B240))","v":""}]
[{"$f":"IF(B241=\"\",\"\",SUBTOTAL(3,$B$213:B241))","v":""}]
[{"$f":"IF(B242=\"\",\"\",SUBTOTAL(3,$B$213:B242))","v":""}]
["Total :",null,{"$f":"SUM(C213:C242)","v":1689}]
[]
["Guide Signature :…………………………………………………………………………………………………….."]

{"sheet":"Omar Nagy","index":2,"n_rows":122,"n_cols":5,"rows_kept":122,"cut":false,"hidden":false,"merged":[[37,0,37,1],[0,0,0,1],[0,4,1,4],[2,0,2,4],[4,0,4,4],[39,0,39,4],[41,0,41,1],[41,4,42,4],[43,0,43,4],[45,0,45,4],[119,0,119,1],[121,0,121,4],[86,0,86,4],[78,0,78,1],[80,0,80,4],[82,0,82,1],[82,4,83,4],[84,0,84,4]]}
[{"$f":"TODAY()","v":"2021-01-19"},null,null,null,1]
[]
["Company :Safari Company"]
[]
["Guide Name: Omar Nagy"]
[]
["No.","Voucher no.","Cash",null,"Remarks"]
[{"$f":"IF(B8=\"\",\"\",SUBTOTAL(3,$B$8:B8))","v":""}]
[{"$f":"IF(B9=\"\",\"\",SUBTOTAL(3,$B$8:B9))","v":""}]
[{"$f":"IF(B10=\"\",\"\",SUBTOTAL(3,$B$8:B10))","v":""}]
[{"$f":"IF(B11=\"\",\"\",SUBTOTAL(3,$B$8:B11))","v":""}]
[{"$f":"IF(B12=\"\",\"\",SUBTOTAL(3,$B$8:B12))","v":""}]
[{"$f":"IF(B13=\"\",\"\",SUBTOTAL(3,$B$8:B13))","v":""}]
[{"$f":"IF(B14=\"\",\"\",SUBTOTAL(3,$B$8:B14))","v":""}]
[{"$f":"IF(B15=\"\",\"\",SUBTOTAL(3,$B$8:B15))","v":""}]
[{"$f":"IF(B16=\"\",\"\",SUBTOTAL(3,$B$8:B16))","v":""}]
[{"$f":"IF(B17=\"\",\"\",SUBTOTAL(3,$B$8:B17))","v":""}]
[{"$f":"IF(B18=\"\",\"\",SUBTOTAL(3,$B$8:B18))","v":""}]
[{"$f":"IF(B19=\"\",\"\",SUBTOTAL(3,$B$8:B19))","v":""}]
[{"$f":"IF(B20=\"\",\"\",SUBTOTAL(3,$B$8:B20))","v":""}]
[{"$f":"IF(B21=\"\",\"\",SUBTOTAL(3,$B$8:B21))","v":""}]
[{"$f":"IF(B22=\"\",\"\",SUBTOTAL(3,$B$8:B22))","v":""}]
[{"$f":"IF(B23=\"\",\"\",SUBTOTAL(3,$B$8:B23))","v":""}]
[{"$f":"IF(B24=\"\",\"\",SUBTOTAL(3,$B$8:B24))","v":""}]
[{"$f":"IF(B25=\"\",\"\",SUBTOTAL(3,$B$8:B25))","v":""}]
[{"$f":"IF(B26=\"\",\"\",SUBTOTAL(3,$B$8:B26))","v":""}]
[{"$f":"IF(B27=\"\",\"\",SUBTOTAL(3,$B$8:B27))","v":""}]
[{"$f":"IF(B28=\"\",\"\",SUBTOTAL(3,$B$8:B28))","v":""}]
[{"$f":"IF(B29=\"\",\"\",SUBTOTAL(3,$B$8:B29))","v":""}]
[{"$f":"IF(B30=\"\",\"\",SUBTOTAL(3,$B$8:B30))","v":""}]
[{"$f":"IF(B31=\"\",\"\",SUBTOTAL(3,$B$8:B31))","v":""}]
[{"$f":"IF(B32=\"\",\"\",SUBTOTAL(3,$B$8:B32))","v":""}]
[{"$f":"IF(B33=\"\",\"\",SUBTOTAL(3,$B$8:B33))","v":""}]
[{"$f":"IF(B34=\"\",\"\",SUBTOTAL(3,$B$8:B34))","v":""}]
[{"$f":"IF(B35=\"\",\"\",SUBTOTAL(3,$B$8:B35))","v":""}]
[{"$f":"IF(B36=\"\",\"\",SUBTOTAL(3,$B$8:B36))","v":""}]
[{"$f":"IF(B37=\"\",\"\",SUBTOTAL(3,$B$8:B37))","v":""}]
["Total :",null,{"$f":"SUM(C8:C37)","v":0}]
[]
["Guide Signature :…………………………………………………………………………………………………….."]
[]
[{"$f":"TODAY()","v":"2021-01-19"},null,null,null,2]
[]
["Company :Safari Company"]
[]
["Guide Name: Omar Nagy"]
[]
["No.","Voucher no.","Cash",null,"Remarks"]
[{"$f":"IF(B49=\"\",\"\",SUBTOTAL(3,$B$49:B49))","v":""}]
[{"$f":"IF(B50=\"\",\"\",SUBTOTAL(3,$B$49:B50))","v":""}]
[{"$f":"IF(B51=\"\",\"\",SUBTOTAL(3,$B$49:B51))","v":""}]
[{"$f":"IF(B52=\"\",\"\",SUBTOTAL(3,$B$49:B52))","v":""}]
[{"$f":"IF(B53=\"\",\"\",SUBTOTAL(3,$B$49:B53))","v":""}]
[{"$f":"IF(B54=\"\",\"\",SUBTOTAL(3,$B$49:B54))","v":""}]
[{"$f":"IF(B55=\"\",\"\",SUBTOTAL(3,$B$49:B55))","v":""}]
[{"$f":"IF(B56=\"\",\"\",SUBTOTAL(3,$B$49:B56))","v":""}]
[{"$f":"IF(B57=\"\",\"\",SUBTOTAL(3,$B$49:B57))","v":""}]
[{"$f":"IF(B58=\"\",\"\",SUBTOTAL(3,$B$49:B58))","v":""}]
[{"$f":"IF(B59=\"\",\"\",SUBTOTAL(3,$B$49:B59))","v":""}]
[{"$f":"IF(B60=\"\",\"\",SUBTOTAL(3,$B$49:B60))","v":""}]
[{"$f":"IF(B61=\"\",\"\",SUBTOTAL(3,$B$49:B61))","v":""}]
[{"$f":"IF(B62=\"\",\"\",SUBTOTAL(3,$B$49:B62))","v":""}]
[{"$f":"IF(B63=\"\",\"\",SUBTOTAL(3,$B$49:B63))","v":""}]
[{"$f":"IF(B64=\"\",\"\",SUBTOTAL(3,$B$49:B64))","v":""}]
[{"$f":"IF(B65=\"\",\"\",SUBTOTAL(3,$B$49:B65))","v":""}]
[{"$f":"IF(B66=\"\",\"\",SUBTOTAL(3,$B$49:B66))","v":""}]
[{"$f":"IF(B67=\"\",\"\",SUBTOTAL(3,$B$49:B67))","v":""}]
[{"$f":"IF(B68=\"\",\"\",SUBTOTAL(3,$B$49:B68))","v":""}]
[{"$f":"IF(B69=\"\",\"\",SUBTOTAL(3,$B$49:B69))","v":""}]
[{"$f":"IF(B70=\"\",\"\",SUBTOTAL(3,$B$49:B70))","v":""}]
[{"$f":"IF(B71=\"\",\"\",SUBTOTAL(3,$B$49:B71))","v":""}]
[{"$f":"IF(B72=\"\",\"\",SUBTOTAL(3,$B$49:B72))","v":""}]
[{"$f":"IF(B73=\"\",\"\",SUBTOTAL(3,$B$49:B73))","v":""}]
[{"$f":"IF(B74=\"\",\"\",SUBTOTAL(3,$B$49:B74))","v":""}]
[{"$f":"IF(B75=\"\",\"\",SUBTOTAL(3,$B$49:B75))","v":""}]
[{"$f":"IF(B76=\"\",\"\",SUBTOTAL(3,$B$49:B76))","v":""}]
[{"$f":"IF(B77=\"\",\"\",SUBTOTAL(3,$B$49:B77))","v":""}]
[{"$f":"IF(B78=\"\",\"\",SUBTOTAL(3,$B$49:B78))","v":""}]
["Total :",null,{"$f":"SUM(C49:C78)","v":0}]
[]
["Guide Signature :…………………………………………………………………………………………………….."]
[]
[{"$f":"TODAY()","v":"2021-01-19"},null,null,null,3]
[]
["Company :Safari Company"]
[]
["Guide Name: Omar Nagy"]
[]
["No.","Voucher no.","Cash",null,"Remarks"]
[{"$f":"IF(B90=\"\",\"\",SUBTOTAL(3,$B$90:B90))","v":""}]
[{"$f":"IF(B91=\"\",\"\",SUBTOTAL(3,$B$90:B91))","v":""}]
[{"$f":"IF(B92=\"\",\"\",SUBTOTAL(3,$B$90:B92))","v":""}]
[{"$f":"IF(B93=\"\",\"\",SUBTOTAL(3,$B$90:B93))","v":""}]
[{"$f":"IF(B94=\"\",\"\",SUBTOTAL(3,$B$90:B94))","v":""}]
[{"$f":"IF(B95=\"\",\"\",SUBTOTAL(3,$B$90:B95))","v":""}]
[{"$f":"IF(B96=\"\",\"\",SUBTOTAL(3,$B$90:B96))","v":""}]
[{"$f":"IF(B97=\"\",\"\",SUBTOTAL(3,$B$90:B97))","v":""}]
[{"$f":"IF(B98=\"\",\"\",SUBTOTAL(3,$B$90:B98))","v":""}]
[{"$f":"IF(B99=\"\",\"\",SUBTOTAL(3,$B$90:B99))","v":""}]
[{"$f":"IF(B100=\"\",\"\",SUBTOTAL(3,$B$90:B100))","v":""}]
[{"$f":"IF(B101=\"\",\"\",SUBTOTAL(3,$B$90:B101))","v":""}]
[{"$f":"IF(B102=\"\",\"\",SUBTOTAL(3,$B$90:B102))","v":""}]
[{"$f":"IF(B103=\"\",\"\",SUBTOTAL(3,$B$90:B103))","v":""}]
[{"$f":"IF(B104=\"\",\"\",SUBTOTAL(3,$B$90:B104))","v":""}]
[{"$f":"IF(B105=\"\",\"\",SUBTOTAL(3,$B$90:B105))","v":""}]
[{"$f":"IF(B106=\"\",\"\",SUBTOTAL(3,$B$90:B106))","v":""}]
[{"$f":"IF(B107=\"\",\"\",SUBTOTAL(3,$B$90:B107))","v":""}]
[{"$f":"IF(B108=\"\",\"\",SUBTOTAL(3,$B$90:B108))","v":""}]
[{"$f":"IF(B109=\"\",\"\",SUBTOTAL(3,$B$90:B109))","v":""}]
[{"$f":"IF(B110=\"\",\"\",SUBTOTAL(3,$B$90:B110))","v":""}]
[{"$f":"IF(B111=\"\",\"\",SUBTOTAL(3,$B$90:B111))","v":""}]
[{"$f":"IF(B112=\"\",\"\",SUBTOTAL(3,$B$90:B112))","v":""}]
[{"$f":"IF(B113=\"\",\"\",SUBTOTAL(3,$B$90:B113))","v":""}]
[{"$f":"IF(B114=\"\",\"\",SUBTOTAL(3,$B$90:B114))","v":""}]
[{"$f":"IF(B115=\"\",\"\",SUBTOTAL(3,$B$90:B115))","v":""}]
[{"$f":"IF(B116=\"\",\"\",SUBTOTAL(3,$B$90:B116))","v":""}]
[{"$f":"IF(B117=\"\",\"\",SUBTOTAL(3,$B$90:B117))","v":""}]
[{"$f":"IF(B118=\"\",\"\",SUBTOTAL(3,$B$90:B118))","v":""}]
[{"$f":"IF(B119=\"\",\"\",SUBTOTAL(3,$B$90:B119))","v":""}]
["Total :",null,{"$f":"SUM(C90:C119)","v":0}]
[]
["Guide Signature :…………………………………………………………………………………………………….."]

{"sheet":"Said Reda","index":3,"n_rows":122,"n_cols":5,"rows_kept":122,"cut":false,"hidden":false,"merged":[[37,0,37,1],[0,0,0,1],[0,4,1,4],[2,0,2,4],[4,0,4,4],[39,0,39,4],[41,0,41,1],[41,4,42,4],[43,0,43,4],[45,0,45,4],[119,0,119,1],[121,0,121,4],[86,0,86,4],[78,0,78,1],[80,0,80,4],[82,0,82,1],[82,4,83,4],[84,0,84,4]]}
[{"$f":"TODAY()","v":"2021-01-19"},null,null,null,1]
[]
["Company :Safari Company"]
[]
["Guide Name: Said Reda"]
[]
["No.","Voucher no.","Cash",null,"Remarks"]
[{"$f":"IF(B8=\"\",\"\",SUBTOTAL(3,$B8:B$8))","v":""}]
[{"$f":"IF(B9=\"\",\"\",SUBTOTAL(3,$B$8:B9))","v":""}]
[{"$f":"IF(B10=\"\",\"\",SUBTOTAL(3,$B$8:B10))","v":""}]
[{"$f":"IF(B11=\"\",\"\",SUBTOTAL(3,$B$8:B11))","v":""}]
[{"$f":"IF(B12=\"\",\"\",SUBTOTAL(3,$B$8:B12))","v":""}]
[{"$f":"IF(B13=\"\",\"\",SUBTOTAL(3,$B$8:B13))","v":""}]
[{"$f":"IF(B14=\"\",\"\",SUBTOTAL(3,$B$8:B14))","v":""}]
[{"$f":"IF(B15=\"\",\"\",SUBTOTAL(3,$B$8:B15))","v":""}]
[{"$f":"IF(B16=\"\",\"\",SUBTOTAL(3,$B$8:B16))","v":""}]
[{"$f":"IF(B17=\"\",\"\",SUBTOTAL(3,$B$8:B17))","v":""}]
[{"$f":"IF(B18=\"\",\"\",SUBTOTAL(3,$B$8:B18))","v":""}]
[{"$f":"IF(B19=\"\",\"\",SUBTOTAL(3,$B$8:B19))","v":""}]
[{"$f":"IF(B20=\"\",\"\",SUBTOTAL(3,$B$8:B20))","v":""}]
[{"$f":"IF(B21=\"\",\"\",SUBTOTAL(3,$B$8:B21))","v":""}]
[{"$f":"IF(B22=\"\",\"\",SUBTOTAL(3,$B$8:B22))","v":""}]
[{"$f":"IF(B23=\"\",\"\",SUBTOTAL(3,$B$8:B23))","v":""}]
[{"$f":"IF(B24=\"\",\"\",SUBTOTAL(3,$B$8:B24))","v":""}]
[{"$f":"IF(B25=\"\",\"\",SUBTOTAL(3,$B$8:B25))","v":""}]
[{"$f":"IF(B26=\"\",\"\",SUBTOTAL(3,$B$8:B26))","v":""}]
[{"$f":"IF(B27=\"\",\"\",SUBTOTAL(3,$B$8:B27))","v":""}]
[{"$f":"IF(B28=\"\",\"\",SUBTOTAL(3,$B$8:B28))","v":""}]
[{"$f":"IF(B29=\"\",\"\",SUBTOTAL(3,$B$8:B29))","v":""}]
[{"$f":"IF(B30=\"\",\"\",SUBTOTAL(3,$B$8:B30))","v":""}]
[{"$f":"IF(B31=\"\",\"\",SUBTOTAL(3,$B$8:B31))","v":""}]
[{"$f":"IF(B32=\"\",\"\",SUBTOTAL(3,$B$8:B32))","v":""}]
[{"$f":"IF(B33=\"\",\"\",SUBTOTAL(3,$B$8:B33))","v":""}]
[{"$f":"IF(B34=\"\",\"\",SUBTOTAL(3,$B$8:B34))","v":""}]
[{"$f":"IF(B35=\"\",\"\",SUBTOTAL(3,$B$8:B35))","v":""}]
[{"$f":"IF(B36=\"\",\"\",SUBTOTAL(3,$B$8:B36))","v":""}]
[{"$f":"IF(B37=\"\",\"\",SUBTOTAL(3,$B$8:B37))","v":""}]
["Total :",null,{"$f":"SUM(C8:C37)","v":0}]
[]
["Guide Signature :…………………………………………………………………………………………………….."]
[]
[{"$f":"TODAY()","v":"2021-01-19"},null,null,null,2]
[]
["Company :Safari Company"]
[]
["Guide Name: Said Reda"]
[]
["No.","Voucher no.","Cash",null,"Remarks"]
[{"$f":"IF(B49=\"\",\"\",SUBTOTAL(3,$B$49:B49))","v":""}]
[{"$f":"IF(B50=\"\",\"\",SUBTOTAL(3,$B$49:B50))","v":""}]
[{"$f":"IF(B51=\"\",\"\",SUBTOTAL(3,$B$49:B51))","v":""}]
[{"$f":"IF(B52=\"\",\"\",SUBTOTAL(3,$B$49:B52))","v":""}]
[{"$f":"IF(B53=\"\",\"\",SUBTOTAL(3,$B$49:B53))","v":""}]
[{"$f":"IF(B54=\"\",\"\",SUBTOTAL(3,$B$49:B54))","v":""}]
[{"$f":"IF(B55=\"\",\"\",SUBTOTAL(3,$B$49:B55))","v":""}]
[{"$f":"IF(B56=\"\",\"\",SUBTOTAL(3,$B$49:B56))","v":""}]
[{"$f":"IF(B57=\"\",\"\",SUBTOTAL(3,$B$49:B57))","v":""}]
[{"$f":"IF(B58=\"\",\"\",SUBTOTAL(3,$B$49:B58))","v":""}]
[{"$f":"IF(B59=\"\",\"\",SUBTOTAL(3,$B$49:B59))","v":""}]
[{"$f":"IF(B60=\"\",\"\",SUBTOTAL(3,$B$49:B60))","v":""}]
[{"$f":"IF(B61=\"\",\"\",SUBTOTAL(3,$B$49:B61))","v":""}]
[{"$f":"IF(B62=\"\",\"\",SUBTOTAL(3,$B$49:B62))","v":""}]
[{"$f":"IF(B63=\"\",\"\",SUBTOTAL(3,$B$49:B63))","v":""}]
[{"$f":"IF(B64=\"\",\"\",SUBTOTAL(3,$B$49:B64))","v":""}]
[{"$f":"IF(B65=\"\",\"\",SUBTOTAL(3,$B$49:B65))","v":""}]
[{"$f":"IF(B66=\"\",\"\",SUBTOTAL(3,$B$49:B66))","v":""}]
[{"$f":"IF(B67=\"\",\"\",SUBTOTAL(3,$B$49:B67))","v":""}]
[{"$f":"IF(B68=\"\",\"\",SUBTOTAL(3,$B$49:B68))","v":""}]
[{"$f":"IF(B69=\"\",\"\",SUBTOTAL(3,$B$49:B69))","v":""}]
[{"$f":"IF(B70=\"\",\"\",SUBTOTAL(3,$B$49:B70))","v":""}]
[{"$f":"IF(B71=\"\",\"\",SUBTOTAL(3,$B$49:B71))","v":""}]
[{"$f":"IF(B72=\"\",\"\",SUBTOTAL(3,$B$49:B72))","v":""}]
[{"$f":"IF(B73=\"\",\"\",SUBTOTAL(3,$B$49:B73))","v":""}]
[{"$f":"IF(B74=\"\",\"\",SUBTOTAL(3,$B$49:B74))","v":""}]
[{"$f":"IF(B75=\"\",\"\",SUBTOTAL(3,$B$49:B75))","v":""}]
[{"$f":"IF(B76=\"\",\"\",SUBTOTAL(3,$B$49:B76))","v":""}]
[{"$f":"IF(B77=\"\",\"\",SUBTOTAL(3,$B$49:B77))","v":""}]
[{"$f":"IF(B78=\"\",\"\",SUBTOTAL(3,$B$49:B78))","v":""}]
["Total :",null,{"$f":"SUM(C49:C78)","v":0}]
[]
["Guide Signature :…………………………………………………………………………………………………….."]
[]
[{"$f":"TODAY()","v":"2021-01-19"},null,null,null,3]
[]
["Company :Safari Company"]
[]
["Guide Name: Said Reda"]
[]
["No.","Voucher no.","Cash",null,"Remarks"]
[{"$f":"IF(B90=\"\",\"\",SUBTOTAL(3,$B$90:B90))","v":""}]
[{"$f":"IF(B91=\"\",\"\",SUBTOTAL(3,$B$90:B91))","v":""}]
[{"$f":"IF(B92=\"\",\"\",SUBTOTAL(3,$B$90:B92))","v":""}]
[{"$f":"IF(B93=\"\",\"\",SUBTOTAL(3,$B$90:B93))","v":""}]
[{"$f":"IF(B94=\"\",\"\",SUBTOTAL(3,$B$90:B94))","v":""}]
[{"$f":"IF(B95=\"\",\"\",SUBTOTAL(3,$B$90:B95))","v":""}]
[{"$f":"IF(B96=\"\",\"\",SUBTOTAL(3,$B$90:B96))","v":""}]
[{"$f":"IF(B97=\"\",\"\",SUBTOTAL(3,$B$90:B97))","v":""}]
[{"$f":"IF(B98=\"\",\"\",SUBTOTAL(3,$B$90:B98))","v":""}]
[{"$f":"IF(B99=\"\",\"\",SUBTOTAL(3,$B$90:B99))","v":""}]
[{"$f":"IF(B100=\"\",\"\",SUBTOTAL(3,$B$90:B100))","v":""}]
[{"$f":"IF(B101=\"\",\"\",SUBTOTAL(3,$B$90:B101))","v":""}]
[{"$f":"IF(B102=\"\",\"\",SUBTOTAL(3,$B$90:B102))","v":""}]
[{"$f":"IF(B103=\"\",\"\",SUBTOTAL(3,$B$90:B103))","v":""}]
[{"$f":"IF(B104=\"\",\"\",SUBTOTAL(3,$B$90:B104))","v":""}]
[{"$f":"IF(B105=\"\",\"\",SUBTOTAL(3,$B$90:B105))","v":""}]
[{"$f":"IF(B106=\"\",\"\",SUBTOTAL(3,$B$90:B106))","v":""}]
[{"$f":"IF(B107=\"\",\"\",SUBTOTAL(3,$B$90:B107))","v":""}]
[{"$f":"IF(B108=\"\",\"\",SUBTOTAL(3,$B$90:B108))","v":""}]
[{"$f":"IF(B109=\"\",\"\",SUBTOTAL(3,$B$90:B109))","v":""}]
[{"$f":"IF(B110=\"\",\"\",SUBTOTAL(3,$B$90:B110))","v":""}]
[{"$f":"IF(B111=\"\",\"\",SUBTOTAL(3,$B$90:B111))","v":""}]
[{"$f":"IF(B112=\"\",\"\",SUBTOTAL(3,$B$90:B112))","v":""}]
[{"$f":"IF(B113=\"\",\"\",SUBTOTAL(3,$B$90:B113))","v":""}]
[{"$f":"IF(B114=\"\",\"\",SUBTOTAL(3,$B$90:B114))","v":""}]
[{"$f":"IF(B115=\"\",\"\",SUBTOTAL(3,$B$90:B115))","v":""}]
[{"$f":"IF(B116=\"\",\"\",SUBTOTAL(3,$B$90:B116))","v":""}]
[{"$f":"IF(B117=\"\",\"\",SUBTOTAL(3,$B$90:B117))","v":""}]
[{"$f":"IF(B118=\"\",\"\",SUBTOTAL(3,$B$90:B118))","v":""}]
[{"$f":"IF(B119=\"\",\"\",SUBTOTAL(3,$B$90:B119))","v":""}]
["Total :",null,{"$f":"SUM(C90:C119)","v":0}]
[]
["Guide Signature :…………………………………………………………………………………………………….."]